bitfinex-derivatives/quotes_SOLF0:USTF0_20241227
["timestamp","ask_amount","ask_price","bid_price","bid_amount"]
[1735257602662,13.57499247,188.58,188.41,1.6843]
[1735257604162,21.67433985,188.58,188.34,1.6181]
[1735257604355,21.67433985,188.58,188.35,1.5738]
[1735257605561,1.06061409,188.57,188.35,1.5738]
[1735257605757,7.38197808,188.51,188.35,1.5738]
[1735257605964,1.6712,188.5,188.35,1.5738]
[1735257606366,7.38197808,188.51,188.35,1.5738]
[1735257607064,29.52791233,188.52,188.35,1.5738]
[1735257608168,7.38197808,188.53,188.35,1.5738]
[1735257608357,0.86525262,188.52,188.35,1.5738]
[1735257609368,0.86541535,188.51,188.35,1.5738]
[1735257609564,7.38197808,188.49,188.35,1.5738]
[1735257609762,6.30585452,188.41,188.35,1.5738]
[1735257609958,6.30585452,188.39,188.22,29.29204096]
[1735257610162,6.30585452,188.37,188.23,4.8904]
[1735257610371,6.30585452,188.35,188.27,6.30585452]
[1735257611164,6.30585452,188.33,188.23,4.8904]
[1735257611371,19.25608221,188.45,188.25,6.30585452]
[1735257611667,6.30585452,188.37,188.29,6.30585452]
[1735257612569,6.30585452,188.33,188.24,6.30585452]
[1735257613164,6.30585452,188.33,188.23,4.8904]
[1735257613365,6.30585452,188.33,188.24,6.30585452]
[1735257614065,6.30585452,188.33,188.25,3.08]
[1735257614766,6.30585452,188.33,188.24,6.30585452]
[1735257614966,6.30585452,188.33,188.26,3.08]
[1735257617473,6.30585452,188.33,188.26,9.38585452]
[1735257618675,6.30585452,188.33,188.26,3.08]
[1735257621175,6.30585452,188.31,188.24,6.30585452]
[1735257621373,6.30585452,188.31,188.25,3.08]
[1735257623873,1.5271,188.37,188.25,3.08]
[1735257624279,6.30585452,188.32,188.25,3.08]
[1735257624578,6.30585452,188.3,188.25,3.08]
[1735257624975,6.30585452,188.3,188.23,3.3223]
[1735257625175,7.92,188.31,188.23,3.3223]
[1735257625176,6.30585452,188.28,188.24,3.08]
[1735257626079,6.30585452,188.28,188.16,3.67161148]
[1735257626280,6.30585452,188.24,188.17,1.5633]
[1735257626577,6.30585452,188.24,188.18,3.08]
[1735257626968,4.25,188.23,188.18,3.08]
[1735257627380,4.25,188.23,188.18,9.38585452]
[1735257628679,4.25,188.23,188.18,3.08]
[1735257628680,11.84,188.23,188.18,3.08]
[1735257629879,11.84,188.23,188.17,1.5633]
[1735257630081,11.84,188.23,188.18,3.08]
[1735257631485,2.6596,188.22,188.18,5.7399]
[1735257632888,2.6596,188.22,188.18,3.08]
[1735257633089,2.6596,188.22,188.19,2.6599]
[1735257634485,11.84,188.23,188.19,2.6599]
[1735257634689,14.4994,188.23,188.19,2.6599]
[1735257634983,14.4994,188.23,188.2,2.6597]
[1735257636589,11.84,188.23,188.18,9.38585452]
[1735257636888,11.84,188.23,188.2,6.30585452]
[1735257637181,11.84,188.23,188.22,8.96535452]
[1735257637383,6.755,188.23,188.22,8.96535452]
[1735257638786,6.755,188.23,188.22,2.6595]
[1735257640791,6.755,188.23,188.22,8.96535452]
[1735257645793,10.435,188.23,188.22,8.96535452]
[1735257650295,19.465,188.23,188.22,8.96535452]
[1735257650702,16.9224,188.23,188.22,8.96535452]
[1735257650891,11.8372,188.23,188.22,8.96535452]
[1735257651089,9.2945,188.23,188.22,8.96535452]
[1735257651397,3.59,188.3,188.22,6.30585452]
[1735257651697,3.59,188.3,188.29,6.30585452]
[1735257651896,0.9471,188.3,188.29,9.38585452]
[1735257652201,12.83,188.31,188.29,9.38585452]
[1735257652693,14.107,188.31,188.3,2.6583]
[1735257652894,10.5718,188.31,188.3,2.6583]
[1735257656603,7.432,188.31,188.3,2.6583]
[1735257656902,1.0674,188.31,188.3,57.9183]
[1735257657100,11.85,188.32,188.31,2.6582]
[1735257657296,11.85,188.32,188.31,8.96405452]
[1735257657505,5.3491,188.32,188.31,8.96405452]
[1735257657700,0.95,188.36,188.31,6.30585452]
[1735257657898,10.19,188.36,188.35,8.96345452]
[1735257658099,10.19,188.36,188.35,12.04345452]
[1735257658295,9.24,188.36,188.35,12.04345452]
[1735257658505,9.24,188.36,188.35,5.7376]
[1735257658700,9.24,188.36,188.35,12.04345452]
[1735257660303,13.66142642,188.37,188.35,9.38585452]
[1735257660503,10.38022642,188.37,188.36,2.6575]
[1735257661005,6.34242642,188.37,188.36,2.6575]
[1735257661200,2.00092642,188.37,188.36,2.6575]
[1735257661406,7.38197808,188.6,188.35,9.38585452]
[1735257661607,9.8921,188.53,188.35,3.08]
[1735257661904,1.27,188.52,188.47,6.30585452]
[1735257662105,1.27,188.52,188.48,3.08]
[1735257662306,0.52,188.51,188.48,3.08]
[1735257662701,8.14,188.51,188.48,3.08]
[1735257663310,8.14,188.51,188.48,12.04155452]
[1735257664003,8.14,188.51,188.48,9.38585452]
[1735257664306,8.14,188.51,188.5,2.6555]
[1735257665205,8.14,188.51,188.31,5.3163]
[1735257665404,1.6503,188.5,188.4,9.83698455]
[1735257665603,1.6503,188.5,188.41,3.08]
[1735257666408,2.6557,188.49,188.43,2.6564]
[1735257666608,1.6503,188.5,188.41,3.08]
[1735257667110,4.3059,188.5,188.44,2.6564]
[1735257668205,4.3059,188.5,188.41,12.91698455]
[1735257668407,1.6503,188.5,188.44,9.83698455]
[1735257668611,8.14,188.51,188.44,9.83698455]
[1735257668809,8.14,188.51,188.5,2.6555]
[1735257669006,8.14,188.51,188.5,5.7355]
[1735257670105,8.14,188.51,188.5,15.57248455]
[1735257672603,8.14,188.51,188.5,5.7355]
[1735257672806,8.14,188.51,188.5,15.57248455]
[1735257676710,8.14,188.51,188.5,25.4094691]
[1735257676909,8.14,188.51,188.5,15.57248455]
[1735257678914,8.14,188.51,188.5,25.4094691]
[1735257680516,1.3521,188.51,188.5,25.4094691]
[1735257680718,1.27,188.52,188.51,2.6554]
[1735257683520,1.27,188.52,188.51,5.7354]
[1735257684915,1.27,188.52,188.51,2.6554]
[1735257685111,1.27,188.52,188.51,5.7354]
[1735257691925,8.36,188.52,188.51,5.7354]
[1735257699032,5.23,188.53,188.52,2.6552]
[1735257699425,0.5452,188.53,188.52,2.6552]
[1735257699629,0.22765,188.61,188.54,2.655]
[1735257699829,0.22765,188.61,188.59,9.83698455]
[1735257700031,0.22765,188.61,188.6,3.08]
[1735257700534,2.2895,188.62,188.6,0.5405]
[1735257708141,2.2895,188.62,188.61,6.28805429]
[1735257708743,2.2895,188.62,188.61,8.94205429]
[1735257708948,0.69,188.62,188.61,8.94205429]
[1735257710142,0.69,188.62,188.61,12.47431706]
[1735257713448,0.69,188.62,188.49,29.29204096]
[1735257713654,0.69,188.62,188.59,9.82031706]
[1735257713855,0.69,188.62,188.6,3.08]
[1735257717456,0.69,188.62,188.6,5.7341]
[1735257719858,0.69,188.62,188.6,3.08]
[1735257720057,0.69,188.62,188.6,5.7341]
[1735257720256,0.69,188.62,188.6,3.08]
[1735257720958,0.69,188.62,188.61,2.654]
[1735257730167,0.69,188.62,188.61,8.93604446]
[1735257739166,0.69,188.62,188.61,5.714]
[1735257739365,0.69,188.62,188.61,11.99604446]
[1735257759880,3.2058,188.71,188.7,8.93474446]
[1735257760081,3.2058,188.71,188.7,11.99474446]
[1735257764889,3.2058,188.71,188.61,2.654]
[1735257765084,3.2058,188.71,188.67,2.6531]
[1735257765283,1.5622,188.71,188.7,6.28204446]
[1735257766181,1.5622,188.71,188.7,3.74474446]
[1735257766382,1.5622,188.71,188.6,55.16]
[1735257766793,1.5622,188.71,188.66,6.28204446]
[1735257767087,1.99059874,188.69,188.66,3.06]
[1735257767289,1.99059874,188.69,188.66,0.5226]
[1735257767494,2.653,188.68,188.65,3.06]
[1735257767793,1.99059874,188.69,188.65,7.31874446]
[1735257768483,4.64349874,188.69,188.65,7.31874446]
[1735257768688,1.99059874,188.69,188.65,7.31874446]
[1735257769098,1.99059874,188.69,188.66,3.06]
[1735257769588,4.64359874,188.69,188.66,3.06]
[1735257771591,6.28204446,188.67,188.49,30.87914096]
[1735257771890,2.6539,188.62,188.57,8.93654446]
[1735257772096,1.99149603,188.63,188.49,29.29204096]
[1735257772297,1.99149603,188.63,188.57,6.28204446]
[1735257772503,2.654,188.62,188.58,3.06]
[1735257772696,1.99149603,188.63,188.56,6.28204446]
[1735257772990,2.6544,188.58,188.57,3.06]
[1735257773196,2.6544,188.58,188.56,3.06]
[1735257773394,1.93493701,188.59,188.52,6.28204446]
[1735257773595,2.6548,188.56,188.51,2.6553]
[1735257773801,6.28204446,188.55,188.51,3.06]
[1735257773997,6.28204446,188.53,188.4,29.29204096]
[1735257774297,6.28204446,188.51,188.43,6.28204446]
[1735257774797,6.28204446,188.51,188.4,29.29204096]
[1735257774996,6.28204446,188.49,188.4,29.29204096]
[1735257775205,6.28204446,188.49,188.35,401.0288548]
[1735257775206,2.656,188.47,188.41,9.34204446]
[1735257775407,6.28204446,188.47,188.41,6.28204446]
[1735257775604,1.93620499,188.5,188.32,62.45143372]
[1735257775799,1.93620499,188.5,188.44,6.28204446]
[1735257776005,1.93620499,188.5,188.44,9.34204446]
[1735257776207,1.93620499,188.5,188.44,3.06]
[1735257776507,1.93620499,188.5,188.44,12.90294967]
[1735257776703,1.93620499,188.5,188.47,9.84294967]
[1735257777108,1.93620499,188.5,188.48,2.6558]
[1735257777301,1.93620499,188.5,188.49,3.06]
[1735257778707,1.9358774,188.54,188.52,2.6551]
[1735257778909,1.93493701,188.59,188.53,9.84294967]
[1735257779106,1.93493701,188.59,188.54,3.06]
[1735257779611,1.93493701,188.59,188.54,12.90294967]
[1735257780499,2.15517701,188.59,188.54,15.55774967]
[1735257781010,2.15517701,188.59,188.54,12.90294967]
[1735257781706,2.15517701,188.59,188.54,15.55784967]
[1735257781907,2.15517701,188.59,188.54,12.90294967]
[1735257782707,2.15517701,188.59,188.56,2.6546]
[1735257782909,2.15517701,188.59,188.57,9.84294967]
[1735257783104,0.22024,188.59,188.57,9.84294967]
[1735257783709,0.22024,188.59,188.58,2.6544]
[1735257784011,0.22024,188.59,188.57,9.84294967]
[1735257787109,0.22024,188.59,188.58,2.6544]
[1735257789616,1.99149603,188.63,188.57,9.84294967]
[1735257789808,1.99149603,188.63,188.54,3.06]
[1735257789809,1.99149603,188.63,188.62,9.84294967]
[1735257790010,1.99149603,188.63,188.62,12.90294967]
[1735257791113,1.99149603,188.63,188.62,15.55674967]
[1735257792016,1.99059874,188.69,188.62,15.55674967]
[1735257792417,4.64349874,188.69,188.62,12.90294967]
[1735257792816,1.99059874,188.69,188.62,12.90294967]
[1735257793014,1.99059874,188.69,188.62,15.55674967]
[1735257794418,1.99059874,188.69,188.65,9.84294967]
[1735257796422,1.99059874,188.69,188.65,12.49634967]
[1735257797322,1.99059874,188.69,188.66,2.6533]
[1735257797517,1.99059874,188.69,188.67,3.06]
[1735257798319,1.99059874,188.69,188.67,5.7131]
[1735257800722,1.99059874,188.69,188.68,9.84294967]
[1735257804113,6.63978164,188.75,188.68,9.84294967]
[1735257804321,3.98778164,188.75,188.71,9.84294967]
[1735257804514,3.98778164,188.75,188.72,3.06]
[1735257804918,3.98778164,188.75,188.72,1.61560762]
[1735257805818,3.98778164,188.75,188.72,4.26800762]
[1735257806219,3.98778164,188.75,188.72,1.61560762]
[1735257808819,3.98778164,188.75,188.71,9.84294967]
[1735257809021,3.98778164,188.75,188.68,9.84294967]
[1735257809324,2.6526,188.72,188.69,3.06]
[1735257810726,2.6526,188.72,188.66,5.8885]
[1735257811026,2.6526,188.72,188.67,3.06]
[1735257811615,6.63988164,188.75,188.69,2.6528]
[1735257813218,6.63988164,188.75,188.7,2.6527]
[1735257813821,3.98778164,188.75,188.71,2.6525]
[1735257814027,3.98778164,188.75,188.72,3.06]
[1735257814424,6.63978164,188.75,188.72,3.06]
[1735257815124,3.98778164,188.75,188.72,3.06]
[1735257815919,3.98778164,188.75,188.72,5.7124]
[1735257821532,2.6519,188.76,188.72,5.7124]
[1735257821729,2.6517,188.77,188.72,5.7124]
[1735257823626,2.6517,188.77,188.73,2.6523]
[1735257825332,7.31747928,188.82,188.74,3.06]
[1735257825629,0.86391186,188.81,188.74,3.06]
[1735257825834,2.652,188.75,188.74,3.06]
[1735257826034,4.6605338,188.75,188.74,3.06]
[1735257829230,2.0085338,188.75,188.74,3.06]
[1735257831435,4.6605338,188.75,188.74,3.06]
[1735257833336,2.6527,188.7,188.67,2.653]
[1735257833632,4.66179502,188.7,188.67,5.713]
[1735257833840,4.66179502,188.7,188.67,3.06]
[1735257834037,2.00909502,188.7,188.68,2.6529]
[1735257834540,2.00909502,188.7,188.69,2.6529]
[1735257835837,29.26991712,188.78,188.71,2.6525]
[1735257836141,2.652,188.75,188.72,3.06]
[1735257836439,7.31747928,188.78,188.72,3.06]
[1735257837137,2.6517,188.78,188.72,3.06]
[1735257837641,2.6517,188.78,188.74,2.652]
[1735257841741,2.6515,188.79,188.76,2.6518]
[1735257842146,2.6515,188.79,188.77,3.06]
[1735257843548,29.26991712,188.8,188.77,3.06]
[1735257843745,29.26991712,188.8,188.77,5.7116]
[1735257844341,31.92131712,188.8,188.77,5.7116]
[1735257845139,29.26991712,188.8,188.77,3.06]
[1735257845347,7.31747928,188.8,188.79,2.6514]
[1735257846549,42.44738961,188.81,188.8,2.6513]
[1735257847650,7.31747928,188.81,188.8,2.6513]
[1735257848349,7.31747928,188.81,188.8,12.46530684]
[1735257848552,21.95243784,188.81,188.8,12.46530684]
[1735257849652,29.342702,188.82,188.8,12.46530684]
[1735257850147,29.342702,188.82,188.81,6.27461946]
[1735257850451,21.95243784,188.82,188.81,6.27461946]
[1735257851246,21.95243784,188.82,188.77,1.5884]
[1735257851447,29.34027406,188.82,188.79,6.27461946]
[1735257851642,2.6513,188.81,188.79,6.27461946]
[1735257852755,7.38783622,188.8,188.79,6.27461946]
[1735257853650,31.99157406,188.81,188.79,6.27461946]
[1735257856051,2.6513,188.8,188.79,9.33461946]
[1735257856245,2.6513,188.8,188.79,3.06]
[1735257857355,2.6516,188.78,188.77,3.06]
[1735257859350,2.652,188.76,188.75,3.06]
[1735257859754,6.27461946,188.77,188.72,3.06]
[1735257859956,6.27461946,188.79,188.72,3.06]
[1735257860260,35.61489352,188.79,188.72,3.06]
[1735257860757,35.61489352,188.79,188.72,9.33461946]
[1735257861158,29.34027406,188.79,188.74,6.27461946]
[1735257861363,45.16625643,188.78,188.74,6.27461946]
[1735257861859,42.51465643,188.78,188.76,6.27461946]
[1735257862060,42.51465643,188.78,188.77,3.06]
[1735257862458,7.38783622,188.79,188.77,5.7116]
[1735257862651,7.38783622,188.79,188.78,6.27461946]
[1735257862954,21.72777406,188.8,188.79,2.6514]
[1735257863454,58.53983424,188.83,188.78,6.27461946]
[1735257863658,58.53983424,188.83,188.82,6.27461946]
[1735257863855,58.53983424,188.83,188.82,9.33461946]
[1735257864562,100.85620646,188.84,188.82,9.33461946]
[1735257864563,58.53983424,188.84,188.82,9.33461946]
[1735257865452,58.53983424,188.85,188.82,9.33461946]
[1735257865760,71.58628934,188.85,188.82,9.33461946]
[1735257867060,71.58628934,188.85,188.83,2.6509]
[1735257867261,71.58628934,188.85,188.84,6.27461946]
[1735257867751,74.23688934,188.85,188.82,9.33461946]
[1735257867957,61.19043424,188.85,188.82,9.33461946]
[1735257868167,58.53983424,188.85,188.82,9.33461946]
[1735257868762,58.53983424,188.85,188.84,6.27461946]
[1735257869963,58.53983424,188.86,188.84,6.27461946]
[1735257871154,58.53983424,188.86,188.84,8.92531946]
[1735257871762,58.53983424,188.86,188.84,6.27461946]
[1735257877062,71.53769452,188.86,188.84,6.27461946]
[1735257877859,71.53769452,188.87,188.84,6.27461946]
[1735257878261,15.64826028,188.87,188.84,6.27461946]
[1735257878464,2.6504,188.87,188.84,6.27461946]
[1735257882571,67.50652189,188.91,188.81,2.6513]
[1735257882865,6.27461946,188.89,188.82,9.33461946]
[1735257883860,2.6509,188.85,188.82,9.33461946]
[1735257885259,2.6509,188.84,188.82,9.33461946]
[1735257885861,2.6509,188.84,188.83,3.06]
[1735257886371,6.27461946,188.87,188.71,3.92736947]
[1735257886568,6.27461946,188.85,188.71,3.92736947]
[1735257886769,6.27461946,188.85,188.76,6.27461946]
[1735257886969,6.27461946,188.83,188.77,3.06]
[1735257887559,2.6517,188.78,188.77,3.06]
[1735257887765,6.27461946,188.81,188.71,3.92736947]
[1735257887968,2.6521,188.76,188.74,6.27461946]
[1735257888160,6.27461946,188.81,188.74,9.33461946]
[1735257888664,2.6521,188.76,188.74,9.33461946]
[1735257889266,6.27461946,188.81,188.74,9.33461946]
[1735257889465,6.27461946,188.81,188.75,3.06]
[1735257889967,2.6524,188.74,188.72,6.27461946]
[1735257890170,2.6524,188.74,188.73,3.06]
[1735257891569,2.6524,188.73,188.72,6.27461946]
[1735257891768,6.27461946,188.79,188.72,3.06]
[1735257891974,3.1952,188.78,188.72,3.06]
[1735257892872,3.1952,188.78,188.72,9.33461946]
[1735257894181,2.6522,188.75,188.72,9.33461946]
[1735257894978,2.652,188.77,188.74,6.27461946]
[1735257895373,2.6517,188.79,188.75,2.6522]
[1735257895977,23.76256946,188.83,188.78,6.27461946]
[1735257896182,1.6864,188.83,188.79,3.06]
[1735257897276,2.6515,188.8,188.79,3.06]
[1735257897585,1.6864,188.83,188.79,3.06]
[1735257897780,2.6513,188.82,188.79,3.06]
[1735257897976,3.3421,188.84,188.79,3.06]
[1735257899688,2.6513,188.82,188.79,3.06]
[1735257900683,2.6513,188.82,188.8,6.27461946]
[1735257901486,2.6511,188.83,188.8,6.27461946]
[1735257901684,30.03718892,188.88,188.81,2.6512]
[1735257901888,23.76256946,188.88,188.82,6.27461946]
[1735257902083,2.6508,188.85,188.82,6.27461946]
[1735257902690,2.6505,188.87,188.82,6.27461946]
[1735257903084,22.07616946,188.89,188.83,2.651]
[1735257903391,3.2669,188.9,188.84,9.33461946]
[1735257904889,2.6507,188.86,188.84,9.33461946]
[1735257907995,3.2669,188.9,188.84,9.33461946]
[1735257908189,1.664,188.9,188.84,9.33461946]
[1735257908896,2.6505,188.87,188.84,9.33461946]
[1735257909295,1.5727,188.93,188.87,2.6505]
[1735257909593,2.6502,188.89,188.88,6.27461946]
[1735257911502,2.6501,188.9,188.88,6.27461946]
[1735257911702,2.6501,188.9,188.89,3.06]
[1735257911896,1.5827,188.95,188.89,3.06]
[1735257912095,2.6498,188.92,188.89,3.06]
[1735257912399,2.6498,188.92,188.91,6.27461946]
[1735257912603,2.6496,188.94,188.91,8.92451946]
[1735257912802,2.6496,188.94,188.93,6.27461946]
[1735257914809,2.6496,188.94,188.91,8.92451946]
[1735257915913,2.6496,188.94,188.93,6.27461946]
[1735257916214,62.75925627,188.99,188.93,8.92421946]
[1735257916406,62.75925627,188.99,188.95,6.27461946]
[1735257916718,61.20285627,188.99,188.96,3.06]
[1735257917412,2.649,188.98,188.96,3.06]
[1735257918509,61.20285627,188.99,188.96,3.06]
[1735257918714,1.6028,189.04,188.97,6.27461946]
[1735257918916,1.6028,189.04,188.99,6.27461946]
[1735257919218,2.6485,189.02,188.99,6.27461946]
[1735257919914,1.6028,189.04,188.97,6.27461946]
[1735257921213,1.6028,189.04,188.99,6.27461946]
[1735257921419,2.6485,189.02,188.99,6.27461946]
[1735257921719,7.96181946,189.07,188.99,8.92331946]
[1735257922111,2.6483,189.03,188.99,8.92331946]
[1735257922415,6.27461946,189.09,189.01,6.27461946]
[1735257922622,0.86252043,189.08,189.02,3.06]
[1735257922819,70.69342358,189.1,189.03,6.27461946]
[1735257923019,0.8624762,189.09,189.03,6.27461946]
[1735257923220,2.6479,189.06,189.03,6.27461946]
[1735257923422,3.2488,189.1,189.05,6.27461946]
[1735257923717,2.6478,189.06,189.05,6.27461946]
[1735257925927,2.6482,189.04,189.02,3.06]
[1735257926119,6.27461946,189.07,189.0,3.06]
[1735257926424,6.27461946,189.05,188.99,3.06]
[1735257926725,2.6491,188.98,188.97,3.06]
[1735257928525,2.6486,189.01,188.97,3.06]
[1735257928725,7.88901946,189.05,188.98,6.27461946]
[1735257929720,2.6488,189.0,188.98,6.27461946]
[1735257930124,7.88901946,189.05,188.98,6.27461946]
[1735257930326,2.6485,189.02,189.0,6.27461946]
[1735257930520,6.27461946,189.07,189.0,6.27461946]
[1735257930726,2.6481,189.04,189.01,2.6485]
[1735257930920,2.6481,189.04,189.02,3.06]
[1735257931718,2.6481,189.04,189.02,9.33461946]
[1735257931924,2.6482,189.03,189.02,9.33461946]
[1735257934729,2.6482,189.03,189.02,3.06]
[1735257934920,6.27461946,189.05,188.91,1.5489]
[1735257935126,6.27461946,189.03,188.96,6.27461946]
[1735257935822,6.27461946,189.03,188.96,9.33461946]
[1735257936624,2.6491,188.97,188.96,9.33461946]
[1735257937225,2.6491,188.97,188.96,6.27461946]
[1735257940725,2.6489,188.99,188.96,6.27461946]
[1735257940929,35.64191168,189.05,188.96,6.27461946]
[1735257941128,2.6486,189.01,188.98,6.27461946]
[1735257941329,2.6486,189.01,188.99,3.06]
[1735257941531,7.29112276,189.04,189.0,6.27461946]
[1735257941726,9.93922276,189.04,189.0,6.27461946]
[1735257941931,2.6481,189.04,189.0,6.27461946]
[1735257942432,2.6481,189.04,189.02,6.27461946]
[1735257943031,2.6481,189.04,189.0,2.6486]
[1735257943229,2.648,189.05,189.02,6.27461946]
[1735257948535,7.29112276,189.09,189.02,6.27461946]
[1735257948536,2.6482,189.03,189.02,6.27461946]
[1735257950441,2.6488,188.99,188.96,2.6491]
[1735257950739,35.64191168,189.07,188.97,3.06]
[1735257951041,2.6489,188.98,188.97,9.33461946]
[1735257951742,2.6489,188.99,188.97,9.33461946]
[1735257954645,2.6486,189.01,188.98,2.6489]
[1735257954839,7.29112276,189.04,188.97,9.33461946]
[1735257955239,2.6484,189.02,188.97,9.33461946]
[1735257955437,7.29112276,189.04,188.97,9.33461946]
[1735257955937,2.6488,189.0,188.97,9.33461946]
[1735257958750,2.6486,189.01,188.99,6.27461946]
[1735257959145,29.36729222,189.05,188.99,6.27461946]
[1735257959446,22.07616946,189.05,188.99,6.27461946]
[1735257959643,29.36729222,189.06,188.99,6.27461946]
[1735257959943,6.27461946,189.03,188.95,6.27461946]
[1735257960147,6.27461946,189.03,188.96,3.06]
[1735257961348,13.56574222,189.03,188.96,3.06]
[1735257961546,2.6492,188.97,188.96,3.06]
[1735257963545,29.36729222,189.03,188.96,3.06]
[1735257963750,29.36729222,189.03,188.98,6.27461946]
[1735257963951,2.6488,189.0,188.98,6.27461946]
[1735257964153,29.36729222,189.03,188.98,6.27461946]
[1735257964652,2.6485,189.02,188.98,6.27461946]
[1735257964953,7.29112276,189.03,188.98,6.27461946]
[1735257965147,2.6488,189.0,188.98,6.27461946]
[1735257965544,34.11919222,189.05,188.98,6.27461946]
[1735257965848,2.6486,189.01,188.98,8.92351946]
[1735257966349,2.6486,189.01,188.98,6.27461946]
[1735257966550,2.6483,189.03,189.0,6.27461946]
[1735257966751,8.93422276,189.05,189.01,3.06]
[1735257967147,2.6484,189.03,189.01,3.06]
[1735257968348,2.648,189.05,189.02,8.92281946]
[1735257968556,7.29112276,189.08,189.04,6.27461946]
[1735257969359,2.6478,189.06,189.04,6.27461946]
[1735257971448,8.82042276,189.1,189.04,6.27461946]
[1735257972552,2.6478,189.07,189.04,6.27461946]
[1735257973455,2.6478,189.07,189.04,8.92271946]
[1735257974159,1.5293,189.1,189.04,6.27461946]
[1735257974466,2.6478,189.06,189.04,6.27461946]
[1735257975558,6.27461946,189.09,189.05,3.06]
[1735257975961,2.648,189.05,189.04,3.06]
[1735257978657,37.17121168,189.1,189.04,3.06]
[1735257978862,7.29112276,189.09,189.04,3.06]
[1735257979157,2.6479,189.06,189.04,3.06]
[1735257979361,7.29112276,189.09,189.04,9.33461946]
[1735257979561,7.29112276,189.09,189.06,2.6478]
[1735257979562,9.93852276,189.09,189.06,2.6478]
[1735257979859,2.6474,189.09,189.06,2.6478]
[1735257981563,61.1660887,189.11,189.06,2.6478]
[1735257981761,2.6475,189.08,189.06,2.6478]
[1735257982260,2.6475,189.08,189.05,2.6479]
[1735257984266,2.6477,189.07,189.05,2.6479]
[1735257984765,2.6477,189.08,189.05,2.6479]
[1735257986971,2.6477,189.07,189.05,2.6479]
[1735257987171,2.6477,189.07,189.04,11.98271946]
[1735257987671,6.27461946,189.1,189.04,3.06]
[1735257988170,61.1660887,189.11,189.04,9.33461946]
[1735257988570,68.45721146,189.11,189.04,9.33461946]
[1735257989371,2.6478,189.07,189.04,11.98271946]
[1735257991267,6.27461946,189.08,188.95,55.06]
[1735257991469,6.27461946,189.08,189.0,6.27461946]
[1735257991674,2.6482,189.04,189.02,6.27461946]
[1735257992678,2.648,189.05,189.02,6.27461946]
[1735257992873,61.1660887,189.11,189.04,6.27461946]
[1735257993075,61.1660887,189.11,189.04,8.92271946]
[1735257993375,90.53338092,189.11,189.04,8.92271946]
[1735257994275,61.1660887,189.11,189.04,8.92271946]
[1735257994475,2.6478,189.07,189.04,8.92271946]
[1735257995777,61.1660887,189.11,188.98,1.6692]
[1735257995978,2.648,189.05,189.04,6.27461946]
[1735257996276,2.648,189.05,189.04,9.33461946]
[1735257997176,2.6479,189.06,189.04,9.33461946]
[1735257997976,68.45721146,189.11,189.04,9.33461946]
[1735257998177,90.53338092,189.11,189.04,9.33461946]
[1735257998777,2.6478,189.07,189.04,11.98271946]
[1735258000976,2.6476,189.08,189.06,6.27461946]
[1735258009787,2.6477,189.07,189.06,6.27461946]
[1735258010084,2.6477,189.07,189.06,9.33461946]
[1735258011379,2.6477,189.07,189.06,6.27461946]
[1735258012283,2.6476,189.08,189.06,6.27461946]
[1735258012483,7.29112276,189.09,189.06,6.27461946]
[1735258013185,2.6477,189.07,189.06,6.27461946]
[1735258015785,2.6476,189.08,189.06,8.92241946]
[1735258016387,29.36729222,189.1,189.06,6.27461946]
[1735258016580,29.36729222,189.1,189.08,6.27461946]
[1735258017583,2.6473,189.1,189.08,6.27461946]
[1735258023895,29.36729222,189.14,189.09,3.06]
[1735258024097,29.36729222,189.14,189.12,6.27461946]
[1735258024292,2.6468,189.13,189.12,6.27461946]
[1735258025899,29.36729222,189.15,189.1,6.27461946]
[1735258026096,2.6472,189.11,189.1,6.27461946]
[1735258027187,15.19004222,189.16,189.08,3.06]
[1735258027588,2.6474,189.09,189.08,3.06]
[1735258028198,37.26621168,189.16,189.08,3.06]
[1735258028399,2.6474,189.09,189.08,3.06]
[1735258031896,7.29112276,189.14,189.08,3.06]
[1735258032102,2.6471,189.11,189.09,6.27461946]